bitfinex-derivatives/quotes_SOLF0:USTF0_20251101
["timestamp","ask_amount","ask_price","bid_price","bid_amount"]
[1762024690305,2.8,185.76,185.68,4.23706555]
[1762024690598,2.8,185.76,185.67,2.84]
[1762024692306,2.8,185.76,185.68,4.23772214]
[1762024692496,2.8,185.76,185.68,2.84]
[1762024701205,16.66209759,185.85,185.66,4.24206328]
[1762024701206,2.88,185.72,185.66,4.24206328]
[1762024701404,2.88,185.72,185.65,42.38]
[1762024701604,2.88,185.72,185.66,4.24226717]
[1762024701797,2.88,185.72,185.65,42.38]
[1762024701998,2.88,185.72,185.66,4.24225908]
[1762024702313,2.88,185.72,185.66,2.95]
[1762024713615,2.77,185.77,185.68,2.95]
[1762024713811,2.77,185.77,185.69,7.17031891]
[1762024714011,2.77,185.77,185.7,2.95]
[1762024719411,2.74,185.74,185.7,2.95]
[1762024720703,2.0893081,185.75,185.7,2.95]
[1762024720902,4.8293081,185.75,185.7,2.95]
[1762024721512,2.74,185.74,185.7,2.95]
[1762024722612,4.8293081,185.78,185.7,2.95]
[1762024722816,4.8293081,185.78,185.72,2.88]
[1762024729016,2.74,185.77,185.72,2.88]
[1762024729220,2.0893081,185.75,185.72,2.88]
[1762024729418,2.74,185.74,185.72,2.88]
[1762024732022,2.74,185.74,185.7,2.88]
[1762024732222,4.8293081,185.72,185.7,2.88]
[1762024737131,2.74,185.72,185.7,2.88]
[1762024739227,2.74,185.72,185.67,2.88]
[1762024739429,4.8293081,185.72,185.67,2.88]
[1762024740934,2.0893081,185.72,185.67,2.88]
[1762024741138,2.74,185.75,185.69,2.88]
[1762024741139,4.8293081,185.75,185.69,2.88]
[1762024741325,4.8293081,185.75,185.68,4.201327]
[1762024741326,4.8293081,185.75,185.71,2.88]
[1762024742228,2.74,185.74,185.71,2.88]
[1762024745432,2.0893081,185.75,185.71,2.88]
[1762024746642,5.0493081,185.75,185.71,2.88]
[1762024752543,2.0893081,185.75,185.71,2.88]
[1762024753553,5.0493081,185.75,185.71,2.88]
[1762024755153,5.0493081,185.75,185.72,7.01875879]
[1762024755352,5.0493081,185.75,185.72,2.82]
[1762024758650,2.0893081,185.75,185.72,2.82]
[1762024759442,21.0,185.87,185.67,5.01307417]
[1762024759443,2.0893081,185.78,185.74,2.82]
[1762024759646,2.96,185.8,185.76,2.82]
[1762024759647,5.0493081,185.8,185.76,2.82]
[1762024759956,2.96,185.8,185.76,2.82]
[1762024760155,2.96,185.81,185.78,2.82]
[1762024768267,2.96,185.81,185.69,25.27804897]
[1762024768567,2.93,185.78,185.75,2.78]
[1762024772162,2.0893081,185.79,185.75,2.78]
[1762024772363,2.93,185.85,185.75,2.78]
[1762024773577,2.93,185.85,185.76,2.78]
[1762024777972,2.93,185.85,185.77,2.93]
[1762024778572,4.9893081,185.86,185.77,2.93]
[1762024778775,2.9,185.85,185.77,2.93]
[1762024787794,2.9,185.85,185.78,2.93]
[1762024791709,2.9,185.85,185.79,2.93]
[1762024793803,2.9,185.85,185.8,2.93]
[1762024795401,3.26025749,185.91,185.8,2.93]
[1762024795710,2.9,185.89,185.81,2.93]
[1762024797305,3.26025749,185.91,185.81,2.93]
[1762024797306,2.9,185.86,185.81,2.93]
[1762024798007,2.9,185.86,185.77,2.93]
[1762024799199,2.9,185.86,185.78,2.93]
[1762024799400,2.9,185.82,185.75,2.93]
[1762024800202,2.9,185.82,185.76,2.93]
[1762024800509,2.9,185.85,185.77,7.01742549]
[1762024800701,2.9,185.85,185.79,2.93]
[1762024802111,2.9,185.85,185.8,2.93]
[1762024804011,3.26025749,185.87,185.8,2.93]
[1762024804212,6.16025749,185.87,185.8,2.93]
[1762024804415,2.9,185.86,185.8,2.93]
[1762024804611,2.9,185.89,185.82,2.93]
[1762024804915,2.9,185.89,185.84,2.93]
[1762024805107,2.9,185.89,185.85,2.93]
[1762024807614,10.03986263,185.99,185.85,2.93]
[1762024807822,2.69,185.94,185.85,2.93]
[1762024808021,2.69,185.94,185.86,2.74]
[1762024811621,2.69,185.94,185.87,2.74]
[1762024811818,2.69,185.97,185.87,2.74]
[1762024812022,2.69,185.97,185.88,2.74]
[1762024815922,2.69,185.97,185.89,2.74]
[1762024830934,2.95,185.96,185.89,2.74]
[1762024850445,2.69,185.93,185.88,2.83]
[1762024853343,2.69,185.96,185.9,2.83]
[1762024854241,2.69,185.96,185.91,2.83]
[1762024855350,2.69,185.96,185.92,2.83]
[1762024855840,2.69,185.96,185.89,2.83]
[1762024856039,2.69,185.96,185.89,6.92069676]
[1762024856240,2.69,185.96,185.89,2.83]
[1762024856640,2.69,185.96,185.89,6.92082322]
[1762024856847,2.69,185.96,185.89,2.83]
[1762024857345,2.69,185.96,185.9,2.83]
[1762024863855,2.69,185.99,185.9,2.83]
[1762024864552,2.08421045,185.97,185.9,2.83]
[1762024864852,2.69,185.96,185.9,2.83]
[1762024868559,2.69,185.96,185.88,4.09189367]
[1762024868761,2.9,185.93,185.87,12.16319449]
[1762024868954,2.9,185.9,185.87,9.34319449]
[1762024876663,2.9,185.88,185.87,9.34319449]
[1762024882169,2.08421045,185.89,185.87,12.16319449]
[1762024882374,2.73,185.91,185.88,2.82]
[1762024883871,4.81421045,185.95,185.88,2.82]
[1762024884068,2.73,185.94,185.88,2.82]
[1762024888871,89.27740849,186.03,185.87,9.34319449]
[1762024888872,2.73,185.91,185.87,9.34319449]
[1762024889071,2.73,185.91,185.87,12.16319449]
[1762024894578,2.73,185.91,185.88,2.82]
[1762024900175,2.08421045,185.91,185.88,2.82]
[1762024901279,2.87,185.93,185.88,2.82]
[1762024911490,3.25830489,185.9,185.87,9.34319449]
[1762024911689,3.25830489,185.9,185.79,4.9909081]
[1762024911690,2.87,185.83,185.75,2.92]
[1762024923705,3.25830489,185.84,185.75,2.92]
[1762024923706,2.87,185.79,185.75,2.92]
[1762024924999,3.25830489,185.8,185.75,2.92]
[1762024925388,6.12830489,185.8,185.75,2.92]
[1762024927694,2.81,185.79,185.75,2.92]
[1762024929303,6.06830489,185.8,185.75,2.92]
[1762024930105,2.81,185.79,185.75,2.92]
[1762024930700,3.25830489,185.8,185.75,2.92]
[1762024931004,6.06830489,185.8,185.75,2.92]
[1762024931803,2.81,185.79,185.75,2.92]
[1762024941819,3.25830489,185.76,185.71,2.76]
[1762024942004,2.7,185.75,185.71,2.76]
[1762024945115,2.7,185.75,185.68,2.76]
[1762024961535,2.74,185.71,185.66,2.74]
[1762024963333,2.0902532,185.7,185.66,2.74]
[1762024963630,4.9402532,185.7,185.66,2.74]
[1762024965429,2.85,185.69,185.66,2.74]
[1762024975736,2.0902532,185.72,185.66,2.74]
[1762024990452,4.8802532,185.72,185.66,2.74]
[1762024991253,2.79,185.71,185.66,2.74]
[1762024991649,2.79,185.68,185.66,2.74]
[1762024992152,2.79,185.68,185.64,2.77]
[1762024997961,2.79,185.65,185.63,2.77]
[1762024998265,2.0902532,185.66,185.63,2.77]
[1762024999662,4.8802532,185.66,185.63,2.77]
[1762025000762,2.79,185.65,185.61,2.77]
[1762025006574,4.8802532,185.65,185.61,2.77]
[1762025007369,2.7,185.64,185.61,2.77]
[1762025010564,2.0902532,185.69,185.61,2.77]
[1762025010964,6.71408363,185.75,185.63,2.0902532]
[1762025011170,2.0902532,185.8,185.67,2.75]
[1762025011374,2.7,185.79,185.67,2.75]
[1762025011678,2.7,185.79,185.69,2.75]
[1762025011870,2.7,185.79,185.71,2.75]
[1762025012073,2.7,185.79,185.73,2.75]
[1762025017478,2.0902532,185.77,185.73,2.75]
[1762025017682,4.8402532,185.77,185.73,2.75]
[1762025017882,4.8402532,185.8,185.73,2.75]
[1762025018384,2.75,185.79,185.73,2.75]
[1762025024395,3.26274158,185.8,185.73,2.75]
[1762025026288,6.01274158,185.82,185.73,2.75]
[1762025027294,2.75,185.85,185.73,2.75]
[1762025027892,2.75,185.85,185.74,2.78]
[1762025042192,2.75,185.85,185.75,2.78]
[1762025042394,2.75,185.85,185.76,2.78]
[1762025043390,2.75,185.85,185.77,2.78]
[1762025048903,3.26274158,185.89,185.78,2.8]
[1762025048904,2.85,185.88,185.78,2.8]
[1762025049206,2.85,185.88,185.79,2.8]
[1762025049593,2.85,185.88,185.8,2.8]
[1762025053211,2.85,185.88,185.81,2.8]
[1762025053396,2.85,185.88,185.82,2.8]
[1762025057703,2.85,185.88,185.83,2.8]
[1762025057897,2.85,185.88,185.84,2.8]
[1762025059107,2.85,185.9,185.84,2.8]
[1762025065299,2.7,185.86,185.8,2.8]
[1762025075120,2.7,185.86,185.81,2.8]
[1762025077019,2.81,185.89,185.81,2.8]
[1762025077327,2.81,185.89,185.83,2.73]
[1762025077620,2.81,185.89,185.83,6.91001755]
[1762025077813,2.81,185.89,185.83,2.73]
[1762025082209,2.81,185.89,185.83,6.91194236]
[1762025082413,2.81,185.89,185.83,2.73]
[1762025090639,2.81,185.89,185.79,2.73]
[1762025090839,2.81,185.86,185.8,6.91843416]
[1762025091034,2.81,185.86,185.81,4.18843416]
[1762025091229,2.81,185.86,185.8,2.73]
[1762025091429,2.81,185.86,185.81,6.91941189]
[1762025091632,2.81,185.86,185.81,2.73]
[1762025100437,2.81,185.86,185.82,4.19106554]
[1762025100637,2.81,185.86,185.76,4.8467]
[1762025100638,2.81,185.86,185.83,2.73]
[1762025102546,2.08576109,185.87,185.83,2.73]
[1762025102738,2.81,185.89,185.83,2.73]
[1762025104743,2.81,185.89,185.85,2.73]
[1762025109259,2.81,185.89,185.82,7.00240052]
[1762025109455,2.81,185.89,185.82,2.81]
[1762025112754,2.81,185.89,185.77,2.08576109]
[1762025112755,2.81,185.89,185.84,2.81]
[1762025116459,2.92,185.92,185.86,2.81]
[1762025124466,5.00576109,185.92,185.86,2.81]
[1762025126169,2.76,185.91,185.86,2.81]
[1762025139564,2.08576109,185.89,185.83,2.95]
[1762025139769,2.08576109,185.89,185.85,2.95]
[1762025139770,2.95,185.88,185.85,2.95]
[1762025141662,2.95,185.88,185.82,7.14464139]
[1762025141865,2.95,185.88,185.84,2.95]
[1762025148567,2.95,185.88,185.81,2.95]
[1762025148763,3.25953186,185.94,185.66,16.3072714]
[1762025148764,2.95,185.86,185.78,2.95]
[1762025148969,2.95,185.86,185.79,7.14888434]
[1762025149279,2.95,185.86,185.8,4.19888434]
[1762025149472,2.95,185.86,185.79,2.95]
[1762025149678,2.95,185.86,185.8,4.19782599]
[1762025149863,2.95,185.86,185.79,2.95]
[1762025150175,2.95,185.86,185.8,4.19794514]
[1762025150374,2.95,185.86,185.79,2.95]
[1762025150567,2.95,185.86,185.8,4.19682919]
[1762025150766,2.95,185.86,185.79,2.95]
[1762025150968,2.95,185.86,185.8,4.19694841]
[1762025151166,2.95,185.86,185.79,2.95]
[1762025163678,2.95,185.86,185.76,2.95]
[1762025178482,2.95,185.86,185.77,2.69]
[1762025181400,2.95,185.86,185.78,2.96]
[1762025182702,2.95,185.86,185.79,2.96]
[1762025207333,5.03676962,185.86,185.79,2.96]
[1762025207524,2.69,185.85,185.79,2.96]
[1762025212133,2.69,185.85,185.81,2.92]
[1762025219038,2.69,185.88,185.83,2.92]
[1762025219936,2.69,185.88,185.85,2.92]
[1762025221943,2.69,185.87,185.79,7.93670192]
[1762025222143,2.69,185.87,185.7,13.31687199]
[1762025222144,2.69,185.81,185.8,4.20546809]
[1762025222443,2.69,185.81,185.77,4.20735865]
[1762025222638,2.69,185.78,185.76,2.92]
[1762025222842,2.69,185.78,185.77,4.19112639]
[1762025223248,2.69,185.78,185.73,2.92]
[1762025223446,2.69,185.78,185.74,7.11172228]
[1762025223643,2.69,185.78,185.75,4.19172228]
[1762025223850,2.69,185.78,185.74,2.92]
[1762025224046,2.69,185.78,185.75,4.19172609]
[1762025224240,2.69,185.78,185.74,2.92]
[1762025224544,2.69,185.78,185.75,4.19068863]
[1762025224738,2.69,185.78,185.74,2.92]
[1762025224939,2.69,185.78,185.75,7.11090952]
[1762025225139,2.69,185.78,185.75,2.92]
[1762025231743,2.86,185.81,185.75,2.92]
[1762025252155,2.86,185.81,185.75,7.10356274]
[1762025252361,2.86,185.81,185.7,9.85864189]
[1762025252362,2.86,185.81,185.76,2.68]
[1762025252559,4.82676962,185.84,185.76,2.68]
[1762025253460,4.82676962,185.84,185.77,2.68]
[1762025256062,4.82676962,185.84,185.79,2.68]
[1762025256063,2.74,185.84,185.79,2.68]
[1762025256266,4.82676962,185.87,185.79,2.68]
[1762025256454,2.74,185.86,185.79,2.68]
[1762025258256,2.74,185.86,185.8,2.83]
[1762025260964,0.93666729,185.95,185.8,2.83]
[1762025260965,2.91,185.89,185.81,2.83]
[1762025264660,2.91,185.86,185.81,2.83]
[1762025264869,2.91,185.86,185.81,4.17807013]
[1762025265074,2.91,185.86,185.82,2.83]
[1762025265965,2.91,185.86,185.77,2.83]
[1762025266265,2.91,185.86,185.79,2.83]
[1762025270876,2.91,185.86,185.79,7.00876578]
[1762025271072,2.91,185.86,185.8,2.83]
[1762025283784,3.26056498,185.88,185.8,2.83]
[1762025283983,3.26056498,185.94,185.8,2.83]
[1762025283984,2.91,185.89,185.8,2.83]
[1762025286291,2.91,185.89,185.79,4.8461]
[1762025286292,2.91,185.89,185.82,2.83]
[1762025286479,2.91,185.89,185.83,2.83]
[1762025295395,2.91,185.89,185.84,2.84]
[1762025298701,2.91,185.89,185.79,2.84]
[1762025298894,2.91,185.89,185.81,2.84]
[1762025299094,2.91,185.89,185.82,7.01817893]
[1762025299295,2.91,185.89,185.83,4.17817893]
[1762025299487,2.91,185.89,185.83,2.84]
[1762025303195,2.91,185.89,185.85,2.82]
[1762025303393,2.93,185.92,185.85,2.82]
[1762025303795,2.93,185.92,185.87,2.82]
[1762025307000,2.93,185.92,185.88,2.82]
[1762025318225,2.93,185.92,185.84,4.18454745]
[1762025318226,2.93,185.92,185.85,6.87454745]
[1762025318420,2.93,185.92,185.85,2.69]
[1762025319924,26.2809552,185.98,185.75,3.26056498]
[1762025319925,2.88,185.88,185.82,2.69]
[1762025323925,2.88,185.88,185.82,6.88056635]
[1762025324125,2.88,185.88,185.82,2.69]
[1762025329337,2.08623947,185.87,185.82,2.69]
[1762025329534,4.96623947,185.87,185.82,2.69]
[1762025329837,4.96623947,185.87,185.84,2.69]
[1762025330835,2.88,185.86,185.82,2.69]
[1762025331035,2.88,185.86,185.83,4.19487448]
[1762025331232,2.88,185.86,185.82,2.69]
[1762025331439,2.88,185.86,185.83,6.88484651]
[1762025331738,2.88,185.86,185.83,2.69]
[1762025334641,2.88,185.86,185.8,4.19468051]
[1762025334828,4.96623947,185.84,185.81,6.88468051]
[1762025335034,2.88,185.83,185.78,2.69]
[1762025335327,2.88,185.8,185.79,4.19468051]
[1762025335528,2.88,185.8,185.78,2.69]
[1762025335934,4.96623947,185.81,185.78,2.69]
[1762025340138,2.88,185.9,185.78,2.69]
[1762025340338,2.08623947,185.85,185.79,6.88204652]
[1762025340533,2.08623947,185.85,185.8,2.69]
[1762025342636,2.08623947,185.85,185.81,2.69]
[1762025345351,2.08623947,185.88,185.81,2.69]
[1762025345552,2.08623947,185.88,185.82,2.69]
[1762025345852,4.96623947,185.88,185.82,2.69]
[1762025353553,2.86,185.87,185.82,2.69]
[1762025355150,2.86,185.87,185.8,2.69]
[1762025358967,2.86,185.87,185.82,2.69]
[1762025366568,2.86,185.87,185.83,7.01826191]
[1762025366764,2.86,185.87,185.83,2.82]
[1762025369571,2.86,185.87,185.81,2.82]
[1762025373978,2.86,185.87,185.76,4.8468]
[1762025373979,2.86,185.87,185.83,2.82]
[1762025383385,2.86,185.87,185.84,4.20253119]
[1762025383587,2.86,185.87,185.85,2.77]
[1762025384789,2.86,185.87,185.81,2.77]
[1762025384985,2.86,185.87,185.83,2.77]
[1762025385185,2.86,185.87,185.84,6.97379295]
[1762025385389,2.86,185.87,185.84,2.77]
[1762025388384,2.86,185.87,185.81,2.77]
[1762025388586,2.86,185.87,185.83,2.77]
[1762025391382,2.86,185.87,185.8,2.77]
[1762025391587,2.86,185.87,185.81,4.20483857]
[1762025391792,2.86,185.87,185.82,4.20483857]
[1762025391992,2.86,185.87,185.8,2.77]
[1762025392296,2.86,185.87,185.81,4.2054479]
[1762025392594,2.86,185.87,185.82,4.2054479]
[1762025392796,2.86,185.87,185.8,2.77]
[1762025392996,2.86,185.87,185.81,4.20529955]
[1762025393297,2.86,185.87,185.82,4.20529955]
[1762025393600,2.86,185.87,185.8,2.77]
[1762025393893,2.86,185.87,185.81,4.21715814]
[1762025394092,2.86,185.87,185.8,2.77]
[1762025394398,2.86,185.87,185.81,4.21753204]
[1762025394597,2.86,185.87,185.8,2.77]
[1762025394898,2.86,185.87,185.81,4.21725316]
[1762025395196,2.86,185.87,185.8,2.77]
[1762025395397,2.86,185.87,185.81,4.21699446]
[1762025395598,2.86,185.87,185.8,2.77]
[1762025395897,2.86,185.87,185.81,4.21702114]
[1762025396096,2.86,185.87,185.8,2.77]
[1762025396303,2.86,185.87,185.81,4.21702114]
[1762025396489,2.86,185.87,185.8,2.77]
[1762025396690,2.86,185.87,185.81,4.21683008]
[1762025396890,2.86,185.87,185.8,2.77]
[1762025397087,2.86,185.87,185.81,4.21683008]
[1762025397292,2.86,185.87,185.8,2.77]
[1762025398096,2.93,185.84,185.77,2.77]
[1762025398295,2.93,185.84,185.78,4.21777856]
[1762025398490,2.93,185.84,185.74,167.34817515]
[1762025398690,2.93,185.84,185.75,4.21853487]
[1762025398902,2.93,185.84,185.76,4.21853487]
[1762025399091,2.93,185.84,185.77,4.21854446]
[1762025399293,2.93,185.84,185.75,2.77]
[1762025399586,2.93,185.84,185.76,4.21594749]
[1762025399790,2.93,185.84,185.75,2.77]
[1762025399991,2.93,185.84,185.76,4.21606922]
[1762025400186,2.93,185.84,185.75,2.77]
[1762025400391,2.93,185.8,185.77,2.77]
[1762025406504,229.09324753,185.86,185.77,2.77]
[1762025406505,2.93,185.84,185.77,2.77]
[1762025407402,2.93,185.84,185.78,2.71]
[1762025426717,2.87,185.83,185.75,2.9]
[1762025441336,2.87,185.83,185.77,2.9]
[1762025451346,2.087586,185.82,185.77,2.9]
[1762025451547,5.047586,185.82,185.77,2.9]
[1762025452344,232.26684832,185.84,185.77,2.9]
[1762025452541,232.26684832,185.84,185.79,2.9]
[1762025452732,232.26684832,185.84,185.81,2.9]
[1762025452937,235.22684832,185.84,185.81,2.9]
[1762025453636,232.26684832,185.84,185.81,2.9]
[1762025455748,235.22684832,185.84,185.81,2.9]
[1762025468849,2.69,185.81,185.79,2.78]
[1762025469147,2.69,185.81,185.8,2.78]
[1762025471643,2.69,185.81,185.77,2.78]
[1762025471846,2.69,185.81,185.79,2.78]
[1762025472048,2.69,185.81,185.79,6.97870394]
[1762025472246,2.69,185.81,185.79,2.78]
[1762025472946,234.95684832,185.84,185.79,2.78]
[1762025473244,2.087586,185.83,185.81,2.78]
[1762025474246,232.26684832,185.84,185.81,2.78]
[1762025474446,2.087586,185.86,185.81,2.78]
[1762025474850,4.777586,185.86,185.81,2.78]
[1762025475050,2.69,185.85,185.81,2.78]
[1762025475251,4.777586,185.86,185.81,2.78]
[1762025475653,4.777586,185.86,185.82,2.78]
[1762025479768,2.087586,185.86,185.82,2.78]
[1762025480462,2.087586,185.86,185.83,2.78]
[1762025482758,2.69,185.89,185.83,2.78]
[1762025482959,2.087586,185.86,185.83,2.78]
[1762025484463,2.087586,185.86,185.84,2.8]
[1762025484663,2.69,185.89,185.84,2.8]
[1762025484864,2.087586,185.88,185.84,2.8]
[1762025486262,2.087586,185.86,185.83,2.8]
[1762025487066,2.087586,185.86,185.85,2.8]
[1762025491674,2.69,185.85,185.8,2.8]
[1762025491975,2.69,185.85,185.82,2.8]
[1762025494669,2.69,185.85,185.82,6.99948884]
[1762025494866,2.69,185.85,185.82,2.8]
[1762025497279,2.69,185.85,185.79,75.86]
[1762025497481,2.087586,185.83,185.8,4.20427303]
[1762025497680,2.76,185.82,185.79,75.86]
[1762025497973,2.76,185.82,185.8,4.20525252]
[1762025498179,2.76,185.82,185.79,75.86]
[1762025498381,2.76,185.82,185.8,4.20535822]
[1762025498572,2.76,185.82,185.79,75.86]
[1762025498777,2.76,185.82,185.8,4.20535822]
[1762025498978,2.76,185.82,185.79,75.86]
[1762025499179,2.76,185.82,185.8,4.20535822]
[1762025499380,2.76,185.82,185.79,75.86]
[1762025499579,2.76,185.82,185.8,4.20545541]
[1762025499781,2.76,185.82,185.79,75.86]
[1762025499977,2.76,185.82,185.8,4.20545541]
[1762025500179,2.76,185.82,185.79,75.86]
[1762025500477,2.76,185.82,185.8,4.20555145]
[1762025500678,2.76,185.82,185.79,75.86]
[1762025500878,2.76,185.82,185.8,4.20555022]
[1762025501078,2.76,185.82,185.79,75.86]
[1762025501278,2.76,185.82,185.8,4.20564542]
[1762025501486,2.76,185.82,185.79,75.86]
[1762025501786,2.76,185.82,185.8,4.2056435]
[1762025501976,2.76,185.82,185.79,78.75]
[1762025502175,2.76,185.82,185.8,4.20564273]
[1762025502479,2.76,185.82,185.79,78.75]
[1762025502680,2.76,185.82,185.8,4.20574396]
[1762025502977,2.76,185.82,185.79,78.75]
[1762025503179,2.76,185.82,185.8,4.20574201]
[1762025503487,2.76,185.82,185.79,78.75]
[1762025503686,2.76,185.82,185.8,4.20584338]
[1762025503889,2.76,185.82,185.79,78.75]
[1762025504188,2.76,185.82,185.79,75.86]
[1762025507897,2.76,185.81,185.73,2.89]
[1762025508099,2.76,185.81,185.74,4.20685237]
[1762025508290,2.76,185.81,185.75,4.20685237]
[1762025508597,2.76,185.81,185.74,75.86]
[1762025508793,2.76,185.81,185.75,4.20606188]
[1762025508986,2.76,185.81,185.74,78.75]
[1762025509190,2.76,185.81,185.75,4.2060639]
[1762025509386,2.76,185.81,185.74,78.75]
[1762025509589,2.76,185.81,185.75,4.20485889]
[1762025509794,2.76,185.81,185.74,78.75]
[1762025512299,2.76,185.81,185.72,161.92370225]
[1762025512494,2.76,185.81,185.72,240.69370225]
[1762025513291,2.76,185.78,185.72,2.89]
[1762025513504,2.76,185.78,185.7,82.97123037]
[1762025513691,2.76,185.78,185.7,78.77]
[1762025514594,2.76,185.78,185.71,2.89]
[1762025524010,2.76,185.78,185.69,0.93675554]
[1762025524206,2.76,185.78,185.68,2.89]
[1762025536327,75.9,185.83,185.68,2.89]
[1762025536328,2.94,185.74,185.68,2.89]
[1762025536528,2.94,185.74,185.66,3.68715917]
[1762025537032,2.94,185.74,185.66,2.75]
[1762025542034,2.72,185.73,185.66,2.75]
[1762025557250,2.72,185.73,185.67,2.88]
[1762025561656,3.26267558,185.71,185.64,4.21276466]
[1762025561860,2.69,185.7,185.63,2.88]
[1762025573375,4.78081206,185.67,185.63,2.88]
[1762025573879,2.69,185.66,185.63,2.88]
[1762025575983,4.78081206,185.67,185.63,2.88]
[1762025577183,2.69,185.66,185.63,2.88]
[1762025580182,2.09081206,185.67,185.63,2.88]
[1762025580380,2.69,185.68,185.63,2.88]
[1762025586094,2.09081206,185.69,185.63,2.88]
[1762025586283,4.78081206,185.69,185.65,2.88]
[1762025587978,2.09081206,185.69,185.65,2.88]
[1762025589189,4.78081206,185.69,185.65,2.88]
[1762025589489,2.09081206,185.69,185.65,2.88]
[1762025591294,4.78081206,185.69,185.65,2.88]
[1762025595792,2.69,185.68,185.61,2.86]
[1762025595997,2.69,185.68,185.63,2.86]
[1762025596189,2.69,185.68,185.64,7.07852899]
[1762025596390,2.69,185.68,185.64,2.86]
[1762025605298,2.69,185.68,185.65,4.22838033]
[1762025605502,2.69,185.68,185.65,2.91]
[1762025606189,2.09081206,185.69,185.65,2.91]
[1762025607202,2.09081206,185.69,185.67,2.91]
[1762025608202,2.09081206,185.72,185.69,2.91]
[1762025608503,5.03081206,185.72,185.69,2.91]
[1762025609402,2.94,185.71,185.66,2.91]
[1762025609601,2.94,185.71,185.67,7.13489779]
[1762025609803,2.94,185.71,185.67,2.91]
[1762025611397,10.07112545,185.78,185.67,2.91]
[1762025611595,2.09081206,185.88,185.74,5.00081206]
[1762025611802,2.09081206,185.91,185.82,2.91]
[1762025613408,2.09081206,185.9,185.82,2.91]
[1762025613709,0.63,185.89,185.82,2.91]
[1762025614708,0.63,185.87,185.82,2.91]
[1762025614898,0.63,185.87,185.79,5.00081206]
[1762025615094,0.63,185.87,185.79,2.91]
[1762025616712,0.62,185.85,185.79,2.91]
[1762025626931,0.62,185.85,185.79,5.00081206]
[1762025627134,0.62,185.85,185.8,2.76]
[1762025656447,79.46040044,185.87,185.75,2.81]
[1762025656448,0.62,185.83,185.75,2.81]
[1762025656647,0.62,185.83,185.77,2.81]
[1762025658844,0.62,185.8,185.77,2.81]
[1762025659040,0.62,185.8,185.74,2.81]
[1762025659041,56.96,185.8,185.74,2.81]
[1762025659245,0.62,185.79,185.74,2.81]
[1762025660150,3.88040044,185.85,185.74,2.81]
[1762025660351,0.62,185.87,185.76,2.81]